bitfinex-derivatives/quotes_BNBF0:USTF0_20250810
["timestamp","ask_amount","ask_price","bid_price","bid_amount"]
[1754798393169,0.21416044,813.29,812.91,1.63132541]
[1754798393464,0.21416044,813.29,812.88,1.63132541]
[1754798393664,0.21416044,813.29,812.86,1.63132541]
[1754798393869,0.21416044,813.29,812.82,1.63132541]
[1754798394165,0.21416044,813.29,812.81,1.63132541]
[1754798394465,0.21416044,813.29,812.95,1.63132541]
[1754798394666,0.21416044,813.29,812.95,0.43353066]
[1754798395269,0.21416044,813.29,812.27,2.72690082]
[1754798397973,0.21416044,813.29,812.26,2.72690082]
[1754798398475,0.21416044,813.29,812.25,2.72690082]
[1754798398976,0.21416044,813.29,812.26,2.72690082]
[1754798400974,0.21416044,813.29,812.44,2.72690082]
[1754798401470,0.21416044,813.29,812.38,2.72690082]
[1754798402672,0.21416044,813.29,812.3,2.72690082]
[1754798403778,0.21416044,813.29,812.41,2.72690082]
[1754798404275,0.21416044,813.29,812.42,2.72690082]
[1754798406476,0.21416044,813.29,812.43,2.72690082]
[1754798406773,0.21416044,813.29,812.53,2.72690082]
[1754798407278,0.21416044,813.29,812.54,2.72690082]
[1754798407774,0.21416044,813.29,812.56,2.72690082]
[1754798409874,0.21416044,813.29,812.66,2.72690082]
[1754798410374,0.21416044,813.29,812.54,2.72690082]
[1754798411078,0.21416044,813.29,812.56,2.72690082]
[1754798412678,0.21416044,813.29,812.45,2.72690082]
[1754798414582,0.21416044,813.29,812.48,2.72690082]
[1754798414779,0.21416044,813.29,813.2,1.64664751]
[1754798415075,0.21416044,813.29,813.14,1.64664751]
[1754798415781,0.21416044,813.29,813.12,1.64664751]
[1754798418784,0.21416044,813.29,813.11,1.64664751]
[1754798418983,0.21416044,813.29,813.09,1.64664751]
[1754798419486,0.21416044,813.29,813.07,1.64664751]
[1754798419684,0.21416044,813.29,813.09,1.64664751]
[1754798419980,0.21416044,813.29,812.41,3.81766115]
[1754798420183,0.21416044,813.29,812.67,2.72690082]
[1754798420583,0.21416044,813.29,812.65,2.72690082]
[1754798422387,0.21416044,813.29,812.58,2.72690082]
[1754798422885,0.21416044,813.29,812.54,2.72690082]
[1754798423782,0.21416044,813.29,812.25,3.81766115]
[1754798424188,0.21416044,813.29,812.41,2.72690082]
[1754798424886,0.21416044,813.29,812.26,2.72690082]
[1754798425283,0.21416044,813.29,812.18,2.72690082]
[1754798426380,0.21416044,813.29,812.17,2.72690082]
[1754798426987,0.21416044,813.29,812.21,2.72690082]
[1754798427386,0.21416044,813.29,812.2,2.72690082]
[1754798428390,0.21416044,813.29,812.19,2.72690082]
[1754798430089,0.21416044,813.29,812.18,2.72690082]
[1754798430493,0.21416044,813.29,812.17,2.72690082]
[1754798431095,0.21416044,813.29,812.34,2.72690082]
[1754798431495,0.21416044,813.29,812.35,2.72690082]
[1754798432191,0.21416044,813.29,812.34,2.72690082]
[1754798434698,0.21416044,813.29,812.26,2.72690082]
[1754798435292,0.21416044,813.29,812.21,2.72690082]
[1754798435698,0.21416044,813.29,812.2,2.72690082]
[1754798436196,0.21416044,813.29,812.19,2.72690082]
[1754798436899,0.21416044,813.29,812.18,2.72690082]
[1754798437499,0.21416044,813.29,812.16,2.72690082]
[1754798437898,0.21416044,813.29,812.06,2.72690082]
[1754798438300,0.21416044,813.29,812.05,2.72690082]
[1754798439106,0.298,813.22,812.05,2.72690082]
[1754798439304,0.21416044,813.29,812.05,2.72690082]
[1754798439599,0.21416044,813.29,812.02,2.72690082]
[1754798440100,0.21416044,813.29,812.68,1.6478269]
[1754798440303,0.298,813.21,812.67,1.6478269]
[1754798440505,0.5,813.23,812.6,1.6478269]
[1754798440702,0.5,813.23,811.94,2.72690082]
[1754798440703,0.5,813.23,812.46,1.6478269]
[1754798440901,0.369,813.21,812.46,1.6478269]
[1754798441200,0.369,813.21,812.43,1.6478269]
[1754798441403,0.369,813.21,812.4,1.6478269]
[1754798441999,0.369,813.21,812.46,1.6478269]
[1754798442300,0.293,813.21,812.21,1.6478269]
[1754798443101,0.258,813.21,812.2,1.6478269]
[1754798443302,0.258,813.21,812.18,1.6478269]
[1754798443502,0.21416044,813.29,812.1,1.6478269]
[1754798443701,0.21416044,813.29,812.16,1.6478269]
[1754798444202,0.21416044,813.29,812.17,1.6478269]
[1754798444506,0.21416044,813.29,811.9,0.965]
[1754798444507,0.21416044,813.29,812.31,1.6478269]
[1754798444707,0.21416044,813.29,812.34,1.6478269]
[1754798444906,0.21416044,813.29,812.38,1.6478269]
[1754798445403,0.21416044,813.29,812.57,1.6478269]
[1754798445805,0.21416044,813.29,812.64,1.6478269]
[1754798446403,0.21416044,813.29,812.66,1.6478269]
[1754798446905,0.21416044,813.29,812.63,1.6478269]
[1754798447204,0.21416044,813.29,812.67,1.6478269]
[1754798447802,0.21416044,813.29,812.66,1.6478269]
[1754798448103,0.21416044,813.29,812.72,1.6478269]
[1754798448809,0.21416044,813.29,812.7,1.6478269]
[1754798449115,0.21416044,813.29,812.68,1.6478269]
[1754798450705,0.21416044,813.29,812.8,1.6478269]
[1754798451308,0.21416044,813.29,812.76,1.6478269]
[1754798454909,0.21416044,813.29,812.66,1.6478269]
[1754798456411,0.21416044,813.29,812.68,1.6478269]
[1754798457113,0.21416044,813.29,812.66,1.6478269]
[1754798457311,0.21416044,813.29,812.67,1.6478269]
[1754798457510,0.21416044,813.29,812.68,1.6478269]
[1754798457810,0.21416044,813.29,812.73,1.6478269]
[1754798458105,0.21416044,813.29,812.74,1.6478269]
[1754798458710,0.21416044,813.29,812.71,1.6478269]
[1754798458912,0.21416044,813.29,812.68,1.6478269]
[1754798460311,0.21416044,813.29,812.7,1.6478269]
[1754798460513,0.21416044,813.29,812.72,1.6478269]
[1754798460812,0.21416044,813.29,812.73,1.6478269]
[1754798462413,0.21416044,813.29,812.72,1.6478269]
[1754798464723,0.21416044,813.29,812.82,1.6478269]
[1754798465422,0.21416044,813.29,812.81,1.6478269]
[1754798465624,0.21416044,813.29,812.82,1.6478269]
[1754798466523,0.21416044,813.29,812.81,1.6478269]
[1754798468328,0.21416044,813.29,812.82,1.6478269]
[1754798468928,0.21416044,813.29,812.87,1.6478269]
[1754798469428,0.21416044,813.29,812.88,1.6478269]
[1754798470730,0.21416044,813.29,812.89,1.6478269]
[1754798471935,0.21416044,813.29,812.17,2.72690082]
[1754798471936,0.21416044,813.29,812.69,1.6478269]
[1754798472533,0.21416044,813.29,812.83,1.6478269]
[1754798473532,0.21416044,813.29,812.84,1.6478269]
[1754798474134,0.21416044,813.29,812.85,1.6478269]
[1754798474530,0.21416044,813.29,812.86,1.6478269]
[1754798476136,0.21416044,813.29,812.87,1.6478269]
[1754798476433,0.21416044,813.29,812.86,1.6478269]
[1754798477035,0.21416044,813.29,812.81,1.6478269]
[1754798477236,0.21416044,813.29,812.86,1.6478269]
[1754798477535,0.21416044,813.29,812.85,1.6478269]
[1754798477736,0.21416044,813.29,812.79,1.6478269]
[1754798479138,0.21416044,813.29,812.8,1.6478269]
[1754798479336,0.21416044,813.29,812.79,1.6478269]
[1754798479537,0.21416044,813.29,812.8,1.6478269]
[1754798479934,0.21416044,813.29,812.77,1.6478269]
[1754798480732,0.21416044,813.29,812.61,1.6478269]
[1754798481339,0.21416044,813.29,812.6,1.6478269]
[1754798481539,0.21416044,813.29,812.61,1.6478269]
[1754798483640,0.21416044,813.29,812.48,1.6478269]
[1754798483942,0.21416044,813.29,812.47,1.6478269]
[1754798484741,0.21416044,813.29,812.48,1.6478269]
[1754798484939,0.21416044,813.29,812.47,1.6478269]
[1754798485140,0.21416044,813.29,812.43,1.6478269]
[1754798485344,0.21416044,813.29,812.49,1.6478269]
[1754798485541,0.21416044,813.29,812.67,1.6478269]
[1754798486138,0.21416044,813.29,812.72,1.6478269]
[1754798486343,0.21416044,813.29,812.82,1.6478269]
[1754798486544,0.21416044,813.29,812.83,1.6478269]
[1754798486742,0.21416044,813.29,812.96,1.6478269]
[1754798487040,0.21416044,813.29,812.97,1.6478269]
[1754798487544,0.21416044,813.29,812.94,1.6478269]
[1754798487739,0.21416044,813.29,813.01,1.6478269]
[1754798488038,0.21416044,813.29,813.0,1.6478269]
[1754798488242,0.21416044,813.29,812.89,1.6478269]
[1754798488439,0.21416044,813.29,812.87,1.6478269]
[1754798488639,0.21416044,813.29,812.89,1.6478269]
[1754798489043,0.21416044,813.29,812.91,1.6478269]
[1754798489639,0.21416044,813.29,812.92,1.6478269]
[1754798489844,0.21416044,813.29,813.07,1.6478269]
[1754798490242,0.276,814.04,813.05,1.6478269]
[1754798490441,0.21406888,813.49,813.09,1.6478269]
[1754798490644,0.21406888,813.49,813.28,1.6478269]
[1754798490841,0.315,814.05,813.28,1.6478269]
[1754798491144,0.21402017,813.49,813.28,1.6478269]
[1754798491448,0.313,814.11,813.26,1.6478269]
[1754798491742,0.21404715,813.49,813.24,1.6478269]
[1754798492046,0.313,814.11,813.25,1.6478269]
[1754798492242,0.21404979,813.49,813.25,1.6478269]
[1754798492443,0.828733,814.53,813.26,1.6478269]
[1754798492644,0.315,814.14,813.27,1.6478269]
[1754798492943,0.278,814.21,813.33,1.6478269]
[1754798493143,0.367,814.22,813.32,1.6478269]
[1754798493343,0.21400766,813.93,813.42,1.6478269]
[1754798493542,0.21400766,813.93,813.38,1.6478269]
[1754798493844,0.21400766,813.93,813.36,1.6478269]
[1754798494046,0.21400766,813.93,813.37,1.6478269]
[1754798494542,0.21400766,813.93,813.24,1.6478269]
[1754798494745,0.21400766,813.93,813.2,1.6478269]
[1754798495442,0.21400766,813.93,813.17,1.6478269]
[1754798496447,0.21400766,813.93,813.16,1.6478269]
[1754798496645,0.21400766,813.93,813.13,1.6478269]
[1754798497346,0.21400766,813.93,813.11,1.6478269]
[1754798498049,0.21400766,813.93,813.03,1.6478269]
[1754798498350,0.21400766,813.93,813.04,1.6478269]
[1754798498547,0.21400766,813.93,813.02,1.6478269]
[1754798499151,0.21400766,813.93,812.97,1.6478269]
[1754798499447,0.21400766,813.93,812.98,1.6478269]
[1754798500651,0.21400766,813.93,813.0,1.6478269]
[1754798501051,0.21400766,813.93,813.02,1.6478269]
[1754798501250,0.21400766,813.93,812.96,1.6478269]
[1754798501450,0.21400766,813.93,812.97,1.6478269]
[1754798502348,0.21400766,813.93,812.98,1.6478269]
[1754798502652,0.21400766,813.93,812.27,2.72690082]
[1754798502653,0.21400766,813.93,812.97,1.6478269]
[1754798503352,0.21400766,813.93,812.99,1.6478269]
[1754798503653,0.21400766,813.93,813.0,1.6478269]
[1754798504449,0.21400766,813.93,813.02,1.6478269]
[1754798504853,0.21400766,813.93,813.05,1.6478269]
[1754798505350,0.21400766,813.93,813.04,1.6478269]
[1754798506053,0.21400766,813.93,813.05,1.6478269]
[1754798507452,0.21400766,813.93,813.14,1.6478269]
[1754798508556,0.21400766,813.93,813.15,1.6478269]
[1754798508753,0.21400766,813.93,813.2,1.6478269]
[1754798509256,0.21400766,813.93,813.19,1.6478269]
[1754798509456,0.21400766,813.93,813.2,1.6478269]
[1754798509960,0.21400766,813.93,812.95,1.6478269]
[1754798510152,0.21400766,813.93,812.96,1.6478269]
[1754798510353,0.21400766,813.93,812.91,1.6478269]
[1754798510553,0.3,813.82,812.88,1.6478269]
[1754798510756,0.21400766,813.93,812.8,1.6478269]
[1754798510957,0.21400766,813.93,812.79,1.6478269]
[1754798511859,0.71400766,813.93,812.79,1.6478269]
[1754798513056,0.21400766,813.93,812.79,1.6478269]
[1754798513259,0.3,813.92,812.79,1.6478269]
[1754798513456,0.21400766,813.93,812.79,1.6478269]
[1754798513960,0.21400766,813.93,812.78,1.6478269]
[1754798515060,0.21400766,813.93,812.96,1.6478269]
[1754798515359,0.21400766,813.93,812.91,1.6478269]
[1754798516060,0.21400766,813.93,812.83,1.6478269]
[1754798517958,0.259,813.79,812.83,1.6478269]
[1754798518757,0.259,813.79,812.77,1.6478269]
[1754798518962,0.342,813.88,812.77,1.6478269]
[1754798519360,0.5,813.86,812.73,1.6478269]
[1754798520162,0.258,813.85,812.73,1.6478269]
[1754798520367,0.365,813.85,812.73,1.6478269]
[1754798520566,0.5,813.83,812.73,1.6478269]
[1754798520767,0.396,813.85,812.74,1.6478269]
[1754798521064,0.5,813.77,812.73,1.6478269]
[1754798521266,0.365,813.85,812.74,1.6478269]
[1754798522564,0.365,813.85,812.76,1.6478269]
[1754798522766,0.21400766,813.93,812.76,1.6478269]
[1754798524067,0.21400766,813.93,812.75,1.6478269]
[1754798524967,0.21400766,813.93,811.93,2.72690082]
[1754798524968,0.21400766,813.93,812.77,1.6478269]
[1754798525865,0.21400766,813.93,812.86,1.6478269]
[1754798526068,0.21400766,813.93,812.87,1.6478269]
[1754798526668,0.21400766,813.93,812.83,1.6478269]
[1754798527064,0.35,813.91,812.83,1.6478269]
[1754798527264,0.315,813.91,812.83,1.6478269]
[1754798528469,0.426,813.91,812.83,1.6478269]
[1754798528668,0.35,813.91,812.83,1.6478269]
[1754798528869,0.35,813.91,812.1,1.327]
[1754798528870,0.35,813.91,812.84,1.6478269]
[1754798529371,0.21400766,813.93,812.85,1.6478269]
[1754798530373,0.21400766,813.93,812.86,1.6478269]
[1754798530667,0.21400766,813.93,812.69,1.6478269]
[1754798531466,0.21400766,813.93,812.7,1.6478269]
[1754798533269,0.21400766,813.93,812.68,1.6478269]
[1754798533469,0.21400766,813.93,812.69,1.6478269]
[1754798533870,0.21400766,813.93,812.7,1.6478269]
[1754798534069,0.21400766,813.93,812.69,1.6478269]
[1754798534373,0.21400766,813.93,812.7,1.6478269]
[1754798534873,0.21400766,813.93,812.71,1.6478269]
[1754798535578,0.21400766,813.93,812.72,1.6478269]
[1754798535974,0.21400766,813.93,812.7,1.6478269]
[1754798536672,0.21400766,813.93,812.1,1.327]
[1754798536673,0.21400766,813.93,812.74,1.6478269]
[1754798536878,0.3,813.87,812.72,1.6478269]
[1754798537077,0.264,813.87,812.78,1.6478269]
[1754798537278,0.5,813.77,812.72,1.6478269]
[1754798537478,0.5,813.77,812.74,1.6478269]
[1754798537777,0.299,813.88,812.75,1.6478269]
[1754798538077,0.336,813.78,812.74,1.6478269]
[1754798538277,0.336,813.74,812.74,1.6478269]
[1754798538579,0.299,813.88,812.77,1.6478269]
[1754798538776,0.316,813.91,812.77,1.6478269]
[1754798539480,0.428,813.91,812.79,1.6478269]
[1754798539676,0.316,813.91,812.79,1.6478269]
[1754798539879,0.316,813.91,812.81,1.6478269]
[1754798540479,0.316,813.91,812.82,1.6478269]
[1754798540679,0.316,813.91,813.01,1.6478269]
[1754798541478,0.316,813.91,813.05,1.6478269]
[1754798541979,0.428,813.91,813.05,1.6478269]
[1754798542175,0.5,813.87,813.05,1.6478269]
[1754798542380,0.5,813.81,813.04,1.6478269]
[1754798542680,0.3,813.66,813.01,1.6478269]
[1754798542890,0.3,813.61,812.99,1.6478269]
[1754798543077,0.5,813.78,813.01,1.6478269]
[1754798543279,0.264,813.64,812.94,1.6478269]
[1754798543582,0.5,813.71,812.98,1.6478269]
[1754798544076,0.5,813.71,812.97,1.6478269]
[1754798544483,0.5,813.71,813.01,1.6478269]
[1754798544677,0.5,813.68,813.01,1.6478269]
[1754798544876,0.5,813.68,813.03,1.6478269]
[1754798545279,0.5,813.68,813.02,1.6478269]
[1754798545482,0.5,813.68,813.03,1.6478269]
[1754798545782,0.5,813.71,813.03,1.6478269]
[1754798545982,0.3,813.64,813.03,1.6478269]
[1754798546282,0.5,813.81,813.04,1.6478269]
[1754798547479,0.5,813.71,813.04,1.6478269]
[1754798547684,0.5,813.71,813.03,1.6478269]
[1754798548580,0.336,813.86,813.01,1.6478269]
[1754798548784,0.5,813.9,813.02,1.6478269]
[1754798548978,0.5,813.9,813.04,1.6478269]
[1754798550587,0.3,813.77,813.04,1.6478269]
[1754798550790,0.5,813.9,813.0,1.6478269]
[1754798551292,0.3,813.76,813.0,1.6478269]
[1754798551492,0.5,813.85,813.0,1.6478269]
[1754798553492,0.5,813.82,813.01,1.6478269]
[1754798554490,0.5,813.82,813.02,1.6478269]
[1754798555490,0.5,813.82,813.03,1.6478269]
[1754798557393,0.5,813.82,813.04,1.6478269]
[1754798558094,0.29,813.64,813.03,1.6478269]
[1754798558293,0.29,813.63,813.2,1.6478269]
[1754798558590,0.5,813.75,813.21,1.6478269]
[1754798558890,0.5,813.75,813.18,0.51976697]
[1754798559095,0.5,813.75,812.57,2.72690082]
[1754798559490,0.5,813.75,812.42,2.72690082]
[1754798560690,0.5,813.71,812.43,2.72690082]
[1754798561094,0.5,813.71,812.45,2.72690082]
[1754798562294,0.5,813.82,812.46,2.72690082]
[1754798562593,0.5,813.79,812.46,2.72690082]
[1754798562798,0.5,813.79,812.52,2.72690082]
[1754798563794,0.5,813.75,812.53,2.72690082]
[1754798565199,0.5,813.75,812.47,2.72690082]
[1754798566400,0.5,813.75,812.49,2.72690082]
[1754798567596,0.5,813.67,812.49,2.72690082]
[1754798568001,0.298,813.82,812.49,2.72690082]
[1754798568300,0.262,813.64,812.49,2.72690082]
[1754798568498,0.5,813.68,812.49,2.72690082]
[1754798569498,0.5,813.64,812.1,1.327]
[1754798569797,0.5,813.6,812.1,1.327]
[1754798570803,0.5,813.6,812.11,0.94929229]
[1754798571003,0.5,813.6,812.12,0.94929229]
[1754798571300,0.5,813.6,812.1,1.327]
[1754798571301,0.5,813.6,812.14,2.72690082]
[1754798571499,0.5,813.6,812.15,0.94929229]
[1754798571700,0.5,813.6,812.13,2.72690082]
[1754798571901,0.5,813.6,812.14,0.94912533]
[1754798572105,0.5,813.6,812.15,0.94912533]
[1754798572306,0.5,813.6,812.13,2.72690082]
[1754798572503,0.5,813.6,812.14,0.94866509]
[1754798572707,0.5,813.6,812.12,2.72690082]
[1754798572906,0.5,813.6,812.13,0.94867572]
[1754798573102,0.5,813.6,812.14,0.94867572]
[1754798573306,0.5,813.6,812.12,2.72690082]
[1754798573606,0.5,813.6,812.15,2.72690082]
[1754798574503,0.5,813.55,812.15,2.72690082]
[1754798574707,0.5,813.55,812.1,1.327]
[1754798574708,0.5,813.55,812.14,2.72690082]
[1754798575407,0.5,813.52,812.15,2.72690082]
[1754798577308,0.5,813.52,812.14,2.72690082]
[1754798577809,0.5,813.45,812.1,1.327]
[1754798578508,0.5,813.45,812.1,4.05390082]
[1754798578903,0.5,813.45,812.85,1.6495554]
[1754798579410,0.29,813.46,812.9,1.6495554]
[1754798580506,0.258,813.5,812.9,1.6495554]
[1754798580709,0.258,813.5,812.79,1.6495554]
[1754798580906,0.5,813.53,812.79,1.6495554]
[1754798581205,0.5,813.53,812.1,1.327]
[1754798581206,0.258,813.63,812.81,1.6495554]
[1754798581410,0.258,813.63,812.82,1.6495554]
[1754798581605,0.366,813.63,812.82,1.6495554]
[1754798581807,0.5,813.67,812.82,1.6495554]
[1754798582806,0.292,813.53,812.82,1.6495554]
[1754798583106,0.5,813.66,812.82,1.6495554]
[1754798583307,0.5,813.56,812.82,1.6495554]
[1754798583907,0.258,813.65,812.82,1.6495554]
[1754798584213,0.366,813.65,812.82,1.6495554]
[1754798584507,0.5,813.67,812.82,1.6495554]
[1754798584710,0.5,813.67,812.1,1.327]
[1754798584711,0.5,813.67,812.81,1.6495554]
[1754798584907,0.292,813.52,812.81,1.6495554]
[1754798585108,0.5,813.66,812.81,1.6495554]
[1754798585910,0.5,813.66,812.82,1.6495554]
[1754798586111,0.5,813.66,812.83,1.6495554]
[1754798587108,0.5,813.63,812.83,1.6495554]
[1754798587612,0.5,813.63,812.87,1.6495554]
[1754798588307,0.5,813.56,812.87,1.6495554]
[1754798588514,0.5,813.56,812.88,1.6495554]
[1754798588712,0.5,813.56,812.9,1.6495554]
[1754798589111,0.5,813.56,812.91,1.6495554]
[1754798590815,0.5,813.56,812.95,1.6495554]
[1754798591313,0.5,813.56,813.0,0.48448435]
[1754798591810,0.294,813.48,812.44,2.72690082]
[1754798592015,0.5,813.56,812.44,2.72690082]
[1754798592414,0.5,813.56,811.92,2.72690082]
[1754798592616,0.5,813.56,811.93,0.96595847]
[1754798592812,0.5,813.56,811.94,0.96595847]
[1754798593015,0.5,813.56,811.95,0.96595847]
[1754798593212,0.5,813.56,811.96,0.96595847]
[1754798593412,0.5,813.56,811.97,0.96595847]
[1754798593712,0.5,813.56,811.98,0.96595847]
[1754798593916,0.5,813.56,811.99,0.96595847]
[1754798594113,0.5,813.53,812.0,0.96595847]
[1754798594413,0.5,813.53,812.01,0.96595847]
[1754798594615,0.5,813.53,812.02,0.96595847]
[1754798594917,0.5,813.53,812.03,0.96595847]
[1754798595117,0.5,813.53,812.04,0.96595847]
[1754798595313,0.5,813.53,812.05,0.96595847]
[1754798595617,0.5,813.5,811.92,2.72690082]
[1754798595918,0.5,813.5,811.93,0.9663635]
[1754798596114,0.299,813.48,811.94,0.9663635]
[1754798596314,0.5,813.44,811.95,0.9663635]
[1754798596613,0.346,813.52,811.96,0.9663635]
[1754798596813,0.346,813.52,811.97,0.9663635]
[1754798597017,0.346,813.52,811.98,0.9663635]
[1754798597214,0.389,813.52,811.99,0.9663635]
[1754798597418,0.389,813.52,812.0,0.9663635]
[1754798597614,0.389,813.52,812.01,0.9663635]
[1754798597814,0.389,813.52,812.02,0.9663635]
[1754798598015,0.389,813.52,812.03,0.9663635]
[1754798598217,0.389,813.52,812.04,0.9663635]
[1754798598416,0.389,813.52,812.05,0.9663635]
[1754798598720,0.389,813.52,811.9,1.034]
[1754798598919,0.389,813.52,811.91,0.96645329]
[1754798599120,0.389,813.52,811.92,0.96645329]
[1754798599424,0.389,813.52,811.93,0.96645329]
[1754798599622,0.389,813.52,811.94,0.96645329]
[1754798599820,0.389,813.52,811.95,0.96645329]
[1754798600019,0.389,813.52,811.96,0.96645329]
[1754798600219,0.389,813.52,811.97,0.96645329]
[1754798600420,0.389,813.52,811.98,0.96645329]
[1754798600619,0.389,813.52,811.99,0.96645329]
[1754798600818,0.389,813.52,811.91,2.72690082]
[1754798601023,0.389,813.52,811.92,0.96652194]
[1754798601220,0.389,813.52,811.93,0.96652194]
[1754798601425,0.389,813.52,811.94,0.96652194]
[1754798601625,0.5,813.51,811.95,0.96652194]
[1754798601921,0.5,813.51,811.96,0.96652194]
[1754798602224,0.5,813.51,811.97,0.96652194]
[1754798602425,0.5,813.45,811.98,0.96652194]
[1754798602622,0.5,813.45,811.92,2.72690082]
[1754798602825,0.5,813.45,811.93,0.96664048]
[1754798603020,0.5,813.45,811.94,0.96664048]
[1754798603224,0.5,813.45,811.95,0.96664048]
[1754798603424,0.346,813.52,811.96,0.96664048]
[1754798603726,0.313,813.54,811.97,0.96664048]
[1754798603929,0.21400766,813.93,811.92,2.72690082]
[1754798603930,0.346,813.52,811.98,0.96664048]
[1754798604223,0.346,813.54,811.92,2.72690082]
[1754798604529,0.346,813.54,811.93,0.96659776]
[1754798604727,0.346,813.54,811.94,0.96659776]
[1754798604927,0.346,813.54,811.95,0.96659776]
[1754798605224,0.346,813.54,811.96,0.96659776]
[1754798605427,0.346,813.54,811.9,3.76090082]
[1754798605629,0.346,813.54,811.91,0.96662869]
[1754798605827,0.346,813.54,811.9,3.76090082]
[1754798606028,0.291,813.49,811.93,2.72690082]
[1754798606428,0.291,813.49,811.97,2.72690082]
[1754798607124,0.5,813.45,811.97,2.72690082]
[1754798608425,0.5,813.45,811.96,2.72690082]
[1754798608630,0.5,813.44,811.96,2.72690082]
[1754798608827,0.368,813.39,811.96,2.72690082]
[1754798609028,0.258,813.39,812.02,2.72690082]
[1754798609330,0.368,813.65,812.02,2.72690082]
[1754798609528,0.368,813.65,812.07,2.72690082]
[1754798610830,0.368,813.65,812.08,0.96622456]
[1754798611029,0.368,813.65,812.09,0.96622456]
[1754798611231,0.258,813.65,812.11,2.72690082]
[1754798611430,0.258,813.65,812.12,0.96622456]
[1754798611631,0.258,813.65,812.13,0.96622456]
[1754798611934,0.28,813.66,812.14,0.96622456]
[1754798612132,0.28,813.66,812.15,0.96622456]
[1754798612435,0.5,813.65,812.16,0.96622456]
[1754798612632,0.462,813.65,812.17,0.96622456]
[1754798612829,0.462,813.65,812.18,0.96622456]
[1754798613032,0.462,813.65,812.11,2.72690082]
[1754798613334,0.42,813.67,812.2,2.72690082]
[1754798615536,0.42,813.67,812.21,0.96686488]
[1754798615732,0.42,813.67,812.22,0.96686488]
[1754798615930,0.42,813.67,812.15,2.72690082]
[1754798616134,0.42,813.67,812.16,0.96685042]
[1754798616436,0.42,813.67,812.17,0.96685042]
[1754798616631,0.42,813.67,812.18,0.96685042]
[1754798616830,0.42,813.67,812.19,0.96685042]
[1754798617029,0.42,813.67,812.17,2.72690082]
[1754798617030,0.42,813.67,812.2,0.96685042]
[1754798617234,0.42,813.67,812.21,0.96685042]
[1754798617433,0.42,813.67,812.22,0.96685042]
[1754798617632,0.312,813.66,812.23,0.96685042]
[1754798617831,0.386,813.67,812.24,0.96715103]
[1754798618132,0.312,813.66,812.17,2.72690082]
[1754798618335,0.386,813.67,812.18,0.96722119]
[1754798618537,0.386,813.67,812.19,0.96722119]
[1754798618836,0.386,813.67,812.2,0.96722119]
[1754798619035,0.386,813.67,812.25,2.72690082]
[1754798619233,0.312,813.66,812.25,2.72690082]
[1754798619437,0.386,813.67,812.25,2.72690082]
[1754798619636,0.386,813.67,812.29,2.72690082]
[1754798619938,0.292,813.61,812.29,2.72690082]
[1754798620135,0.5,813.69,812.29,2.72690082]
[1754798620637,0.5,813.69,812.3,2.72690082]
[1754798620836,0.80377205,813.68,812.3,2.72690082]
[1754798621038,0.80377205,813.67,812.14,2.72690082]
[1754798621234,0.5,813.69,812.15,0.96805383]
[1754798621435,0.8038427,813.68,812.16,0.96805383]
[1754798621640,0.8038427,813.67,812.17,0.96805383]
[1754798621940,0.5,813.69,812.18,0.96805383]
[1754798622139,0.80385981,813.68,812.19,0.96805383]
[1754798622340,0.80385981,813.67,812.2,0.96805383]
[1754798622542,0.80385981,813.66,812.21,0.96805383]
[1754798622737,0.5,813.69,812.22,0.96805383]
[1754798622943,0.312,813.65,812.23,0.96805383]
[1754798623143,0.292,813.64,812.24,0.96805383]
[1754798623443,0.292,813.63,812.25,0.96805383]
[1754798623642,0.312,813.65,812.26,0.96805383]
[1754798623840,0.5,813.69,812.18,2.72690082]
[1754798624039,0.80404497,813.68,812.19,0.96840745]
[1754798624243,0.80404497,813.67,812.2,0.96840745]
[1754798624546,0.80404497,813.66,812.21,0.96840745]
[1754798624743,0.5,813.69,812.22,0.96840745]
[1754798624944,0.80414763,813.68,812.23,0.96840745]
[1754798625144,0.80414763,813.67,812.24,0.96840745]
[1754798625343,0.26,813.53,812.25,0.96840745]
[1754798625542,0.26,813.58,812.26,0.96840745]
[1754798625847,0.366,813.63,812.19,2.72690082]